bitfinex/quotes_SOLUSD_20240824
["timestamp","ask_amount","ask_price","bid_price","bid_amount"]
[1724515639421,30.31035969,159.89,159.82,15.6416]
[1724515639597,30.31035969,159.89,159.83,9.39547131]
[1724515639799,30.31035969,159.89,159.84,1.56591188]
[1724515640000,30.31035969,159.89,159.85,1.56591188]
[1724515640199,24.05575969,159.89,159.84,6.2559]
[1724515640397,15.8176,159.91,159.82,22.18237104]
[1724515640398,24.05575969,159.86,159.83,7.82961027]
[1724515640597,6.256,159.85,159.83,1.56607731]
[1724515640941,6.256,159.85,159.79,21.9032]
[1724515640942,24.05575969,159.84,159.8,8.10781452]
[1724515641140,30.31205969,159.84,159.81,1.56618177]
[1724515641305,24.05575969,159.84,159.8,1.56627658]
[1724515641633,24.05575969,159.84,159.79,21.9035]
[1724515641836,24.05575969,159.84,159.8,1.56630577]
[1724515642020,24.05575969,159.84,159.8,6.2578]
[1724515642213,24.05575969,159.84,159.79,15.6454]
[1724515642762,24.05575969,159.84,159.78,6.2585]
[1724515643038,15.8176,159.83,159.79,1.56628191]
[1724515643204,15.8176,159.83,159.77,1.56628191]
[1724515643535,15.8176,159.83,159.76,14.37384777]
[1724515643536,24.05575969,159.81,159.78,1.56628191]
[1724515643827,24.05575969,159.81,159.77,1.56628191]
[1724515644031,24.05575969,159.81,159.75,15.6488]
[1724515644032,6.2578,159.8,159.75,22.1914781]
[1724515644202,24.05575969,159.81,159.76,7.83196959]
[1724515644405,30.31315969,159.81,159.76,1.56651967]
[1724515644605,6.2574,159.81,159.75,15.6488]
[1724515644828,24.05575969,159.81,159.76,6.2593]
[1724515645814,46.13035969,159.83,159.77,6.2589]
[1724515647437,30.31325969,159.81,159.75,21.9084]
[1724515647616,6.2578,159.8,159.75,21.9084]
[1724515647926,24.05575969,159.79,159.75,15.6488]
[1724515648117,6.2578,159.8,159.72,6.54439405]
[1724515648118,24.05575969,159.77,159.72,6.54439405]
[1724515648319,24.05575969,159.77,159.71,15.6528]
[1724515648320,24.05575969,159.75,159.71,21.914]
[1724515648738,30.31475969,159.77,159.71,21.914]
[1724515648936,30.31475969,159.77,159.72,6.2609]
[1724515649113,30.31475969,159.77,159.73,6.2604]
[1724515649114,24.05575969,159.77,159.73,6.2604]
[1724515649319,6.2586,159.78,159.73,6.2604]
[1724515650113,12.3907,159.8,159.74,6.26]
[1724515651017,6.1326,159.8,159.75,6.2597]
[1724515651419,15.8176,159.83,159.74,15.6503]
[1724515652138,15.8176,159.83,159.77,15.6473]
[1724515652544,15.8176,159.83,159.77,21.9059]
[1724515653719,22.0743,159.83,159.77,21.9059]
[1724515654240,15.8176,159.83,159.78,6.2584]
[1724515654619,15.8176,159.83,159.8,15.6444]
[1724515655128,15.8176,159.83,159.78,6.2582]
[1724515655835,15.8176,159.83,159.76,15.6477]
[1724515656015,15.8176,159.83,159.8,6.2577]
[1724515657118,15.8176,159.83,159.79,21.9034]
[1724515657443,15.8176,159.83,159.77,6.2586]
[1724515657617,15.8176,159.83,159.78,6.2585]
[1724515659624,22.0743,159.83,159.78,6.2585]
[1724515659825,22.0743,159.83,159.75,15.6486]
[1724515659826,24.05575969,159.82,159.77,6.2589]
[1724515661758,6.2575,159.81,159.75,21.9079]
[1724515662746,36.49135969,159.82,159.76,6.259]
[1724515662929,45.0,159.81,159.76,6.259]
[1724515664425,36.49135969,159.82,159.77,6.2589]
[1724515665045,30.23435969,159.82,159.78,6.2585]
[1724515665289,22.0742,159.83,159.78,6.2585]
[1724515670527,15.8176,159.83,159.78,15.6464]
[1724515672256,24.05575969,159.92,159.81,15.6431]
[1724515672257,15.9193,159.87,159.81,15.6431]
[1724515672785,15.9193,159.87,159.84,15.6405]
[1724515672942,30.09585969,159.9,159.84,15.6405]
[1724515673138,30.09585969,159.9,159.86,6.2554]
[1724515673139,24.05575969,159.9,159.86,6.2554]
[1724515673346,24.05575969,159.9,159.84,21.8964]
[1724515673933,24.05575969,159.9,159.85,6.2556]
[1724515674131,24.05575969,159.9,159.86,6.2552]
[1724515674456,24.05575969,159.9,159.85,6.2558]
[1724515674639,24.05575969,159.9,159.86,6.2554]
[1724515676250,24.05575969,159.9,159.84,15.6405]
[1724515676251,24.05575969,159.9,159.84,21.8963]
[1724515676436,6.2543,159.89,159.84,21.8963]
[1724515676645,24.05575969,159.88,159.84,21.8963]
[1724515676931,24.05575969,159.86,159.82,6.2566]
[1724515677257,24.05575969,159.86,159.81,21.9004]
[1724515677758,24.05575969,159.86,159.82,6.257]
[1724515678754,24.05575969,159.86,159.83,6.2562]
[1724515678938,24.05575969,159.86,159.82,6.2569]
[1724515680040,30.31115969,159.86,159.81,21.9008]
[1724515680358,46.23045969,159.86,159.81,21.9008]
[1724515680753,39.97505969,159.86,159.81,21.9008]
[1724515681949,39.97505969,159.86,159.82,6.2568]
[1724515682639,15.9193,159.86,159.83,15.6407]
[1724515682943,30.30995969,159.9,159.83,15.6407]
[1724515682944,46.22925969,159.9,159.83,15.6407]
[1724515683147,46.22925969,159.9,159.85,6.2557]
[1724515683449,46.22925969,159.9,159.83,15.6407]
[1724515683450,6.2543,159.89,159.83,15.6407]
[1724515683648,39.97505969,159.9,159.83,15.6407]
[1724515683855,15.9193,159.9,159.86,6.2553]
[1724515688641,22.1732,159.9,159.85,21.8945]
[1724515688852,46.22895969,159.9,159.85,21.8945]
[1724515692168,39.97505969,159.9,159.81,31.286]
[1724515692366,39.97505969,159.9,159.82,1.56598366]
[1724515692567,46.22895969,159.9,159.85,6.2558]
[1724515694671,22.1732,159.9,159.85,6.2558]
[1724515694874,46.22895969,159.9,159.85,6.2558]
[1724515695579,22.1732,159.9,159.85,6.2558]
[1724515696046,22.1732,159.9,159.83,15.6415]
[1724515696246,15.9193,159.9,159.86,6.2554]
[1724515696545,15.9193,159.9,159.81,31.286]
[1724515696546,15.9193,159.9,159.84,1.56568577]
[1724515696758,15.9193,159.9,159.89,6.2542]
[1724515697174,15.9193,159.9,159.88,21.8911]
[1724515699377,24.05575969,159.93,159.9,6.2538]
[1724515699671,15.4733,159.94,159.9,6.2538]
[1724515703176,21.7257,159.94,159.89,6.2542]
[1724515703658,30.30855969,159.93,159.88,15.6365]
[1724515703862,24.05575969,159.93,159.88,15.6365]
[1724515704656,9.62626075,159.93,159.9,6.2538]
[1724515706589,9.62626075,159.93,159.89,6.2542]
[1724515707481,9.62626075,159.91,159.88,21.8911]
[1724515710773,9.62626075,159.91,159.82,51.90456075]
[1724515710774,9.62626075,159.89,159.86,6.2551]
[1724515711994,9.62626075,159.89,159.85,21.8952]
[1724515712297,15.88166075,159.87,159.82,6.257]
[1724515712507,9.62626075,159.85,159.82,6.257]
[1724515712817,9.62626075,159.85,159.81,21.8996]
[1724515713104,9.62626075,159.85,159.82,6.2568]
[1724515713317,22.0323,159.88,159.83,6.2566]
[1724515713601,9.62626075,159.85,159.83,6.2566]
[1724515715503,9.62626075,159.85,159.81,15.6426]
[1724515716293,9.62626075,159.85,159.82,7.8229039]
[1724515716994,9.62626075,159.83,159.81,15.6426]
[1724515719808,9.62626075,159.83,159.81,21.9]
[1724515724315,6.2555,159.86,159.81,21.9]
[1724515724526,9.62626075,159.84,159.81,21.9]
[1724515727395,9.62626075,159.84,159.81,15.6426]
[1724515729618,9.62626075,159.84,159.81,21.9]
[1724515729811,15.88256075,159.84,159.79,6.2578]
[1724515730920,15.88256075,159.84,159.8,6.2577]
[1724515731223,9.62626075,159.84,159.8,6.2577]
[1724515731802,15.88356075,159.82,159.75,15.6492]
[1724515732009,9.62626075,159.82,159.75,15.6492]
[1724515732813,9.62626075,159.82,159.78,6.2582]
[1724515734110,21.6891,159.83,159.78,6.2582]
[1724515734312,9.62626075,159.82,159.78,6.2582]
[1724515734505,9.62626075,159.82,159.79,6.2582]
[1724515738334,9.62626075,159.82,159.78,6.2585]
[1724515739009,9.62626075,159.8,159.77,21.9055]
[1724515739329,9.62626075,159.8,159.78,6.2585]
[1724515740313,9.62626075,159.8,159.77,21.9056]
[1724515741923,15.88416075,159.8,159.75,6.2596]
[1724515746635,9.62626075,159.8,159.76,6.2593]
[1724515747733,6.2574,159.81,159.76,6.2593]
[1724515749858,15.87976075,159.82,159.76,15.6478]
[1724515750029,6.2535,159.82,159.78,6.2582]
[1724515750224,12.5105,159.82,159.78,6.2582]
[1724515750730,12.5105,159.82,159.76,15.6478]
[1724515750731,12.5105,159.82,159.77,6.2589]
[1724515752755,12.5105,159.82,159.78,6.2585]
[1724515756252,6.2535,159.82,159.78,6.2585]
[1724515757930,15.4324,159.83,159.79,6.2581]
[1724515758148,45.0,159.82,159.79,6.2581]
[1724515759169,15.4324,159.83,159.8,6.2577]
[1724515761159,15.4324,159.83,159.81,6.2574]
[1724515761658,15.4324,159.83,159.8,6.2577]
[1724515764640,15.4324,159.83,159.79,6.2581]
[1724515764965,21.6891,159.83,159.78,21.9039]
[1724515765140,45.0,159.82,159.78,21.9039]
[1724515767460,15.4324,159.83,159.81,15.6432]
[1724515768850,15.4324,159.83,159.79,6.2578]
[1724515771273,25.05866075,159.83,159.79,6.2578]
[1724515777170,15.4324,159.83,159.79,6.2578]
[1724515777366,9.62626075,159.82,159.8,1.56652174]
[1724515777574,9.62626075,159.82,159.79,6.2578]
[1724515777755,9.62626075,159.82,159.8,1.56652195]
[1724515777950,9.62626075,159.82,159.79,6.2578]
[1724515778176,9.62626075,159.82,159.8,1.56653852]
[1724515778363,9.62626075,159.82,159.79,6.2578]
[1724515778563,9.62626075,159.82,159.8,1.56653873]
[1724515778754,9.62626075,159.82,159.79,6.2578]
[1724515779153,9.62626075,159.82,159.8,1.56652195]
[1724515779366,9.62626075,159.82,159.79,6.2578]
[1724515779569,9.62626075,159.82,159.8,1.56652096]
[1724515779779,21.6891,159.83,159.78,21.9047]
[1724515779984,54.62626075,159.82,159.79,1.56652075]
[1724515780279,15.4324,159.83,159.8,1.56652075]
[1724515780480,15.4324,159.83,159.79,6.258]
[1724515780678,25.05866075,159.83,159.8,1.5665551]
[1724515780886,25.05866075,159.83,159.79,6.258]
[1724515781071,25.05866075,159.83,159.8,1.5665553]
[1724515781378,25.05866075,159.83,159.79,6.258]
[1724515781592,25.05866075,159.83,159.8,1.56658782]
[1724515781770,25.05866075,159.83,159.79,6.258]
[1724515782078,15.4324,159.83,159.8,1.56658782]
[1724515782278,15.4324,159.83,159.8,6.2578]
[1724515782458,15.4324,159.83,159.8,21.9012]
[1724515782660,15.4324,159.83,159.81,1.56649625]
[1724515782879,15.4324,159.83,159.8,21.9012]
[1724515783071,15.4324,159.83,159.81,1.566495]
[1724515783377,15.4324,159.83,159.8,15.6435]
[1724515783578,15.4324,159.83,159.81,1.56649637]
[1724515783779,15.4324,159.83,159.8,21.9012]
[1724515784076,15.4324,159.83,159.81,1.56648058]
[1724515784280,15.4324,159.83,159.8,21.9012]
[1724515784281,45.0,159.82,159.8,15.6435]
[1724515786781,45.0,159.82,159.81,1.56650497]
[1724515787910,45.0,159.82,159.8,15.6435]
[1724515790278,45.0,159.82,159.81,1.56652182]
[1724515793290,15.88216075,159.85,159.81,1.56652182]
[1724515793466,9.62626075,159.83,159.82,1.56652182]
[1724515793869,15.88286075,159.83,159.77,15.6474]
[1724515794067,9.62626075,159.81,159.78,15.6576155]
[1724515794287,9.62626075,159.81,159.79,1.56653591]
[1724515794487,9.62626075,159.81,159.8,1.56653591]
[1724515796999,70.85886075,159.81,159.8,1.56653591]
[1724515797174,77.11626075,159.81,159.8,1.56653591]
[1724515797688,70.85886075,159.81,159.77,15.6474]
[1724515797997,45.0,159.8,159.78,1.56666646]
[1724515798191,45.0,159.8,159.79,1.56666646]
[1724515798410,45.0,159.8,159.77,15.6474]
[1724515798592,45.0,159.8,159.79,1.56666522]
[1724515800084,51.2578,159.8,159.79,1.56666522]
[1724515800409,45.0,159.8,159.79,1.56666522]
[1724515800897,45.0,159.8,159.76,6.2593]
[1724515801100,9.62626075,159.78,159.76,6.2593]
[1724515801289,9.62626075,159.78,159.77,1.56671612]
[1724515802697,9.62626075,159.79,159.77,1.56671612]
[1724515802914,9.62626075,159.79,159.78,1.56671612]
[1724515803807,9.62626075,159.79,159.78,1.56672425]
[1724515807194,9.62626075,159.79,159.77,6.2589]
[1724515807399,16.2326,159.81,159.78,7.82522418]
[1724515807606,25.85886075,159.81,159.78,6.2585]
[1724515807989,16.2326,159.81,159.79,1.56668386]
[1724515808189,16.2326,159.81,159.78,6.2585]
[1724515808392,16.2326,159.81,159.79,1.56669215]
[1724515808590,16.2326,159.81,159.78,6.2585]
[1724515808813,16.2326,159.81,159.79,1.56669817]
[1724515809007,16.2326,159.81,159.78,6.2585]
[1724515809402,16.2326,159.81,159.79,1.56669751]
[1724515809600,16.2326,159.81,159.78,6.2585]
[1724515809791,16.2326,159.81,159.79,1.56669751]
[1724515809992,16.2326,159.81,159.78,6.2585]
[1724515810530,25.85886075,159.81,159.79,6.2581]
[1724515810689,9.62626075,159.81,159.79,6.2581]
[1724515815031,22.4607,159.85,159.8,6.2577]
[1724515815320,9.62626075,159.84,159.79,15.6454]
[1724515815817,9.62626075,159.84,159.81,6.2573]
[1724515816021,9.62626075,159.84,159.8,6.2577]
[1724515816521,16.2048,159.85,159.79,15.6454]
[1724515816819,9.62626075,159.84,159.81,6.2574]
[1724515818530,16.2048,159.85,159.81,6.2574]
[1724515818829,9.62626075,159.84,159.81,6.2574]
[1724515819408,6.2554,159.86,159.82,6.257]
[1724515819630,9.62626075,159.84,159.82,6.257]
[1724515822952,45.0,159.85,159.83,6.2566]
[1724515823118,9.62626075,159.85,159.83,6.2566]
[1724515825805,9.62626075,159.85,159.82,6.2569]
[1724515826926,9.62626075,159.85,159.83,6.2565]
[1724515827425,22.4594,159.89,159.83,6.2565]
[1724515827634,16.2048,159.89,159.84,1.56631631]
[1724515827833,16.2048,159.93,159.82,7.83054001]
[1724515828142,16.2048,159.93,159.83,1.56606857]
[1724515828143,9.62626075,159.9,159.83,1.56606857]
[1724515828345,9.62626075,159.9,159.84,1.56606857]
[1724515828642,9.62626075,159.9,159.88,15.6365]
[1724515829121,16.2048,159.93,159.88,15.6365]
[1724515829444,9.62626075,159.91,159.88,15.6365]
[1724515830237,9.62626075,159.91,159.88,21.8911]
[1724515832031,19.29190215,159.98,159.89,6.2542]
[1724515832347,9.62626075,159.92,159.88,21.8911]
[1724515833517,6.2527,159.93,159.88,21.8911]
[1724515833518,9.62626075,159.9,159.88,21.8911]
[1724515837432,9.62626075,159.9,159.86,6.2551]
[1724515837638,9.62626075,159.88,159.86,6.2551]
[1724515837818,9.62626075,159.88,159.87,6.255]
[1724515839219,6.2531,159.92,159.87,6.255]
[1724515839428,9.62626075,159.9,159.87,6.255]
[1724515842237,6.2531,159.92,159.87,6.255]
[1724515842425,9.62626075,159.91,159.88,6.2545]
[1724515843935,21.3078,159.93,159.88,6.2545]
[1724515844236,9.62626075,159.9,159.88,6.2545]
[1724515844624,45.0,159.92,159.86,15.6379]
[1724515844923,9.62626075,159.9,159.89,15.6349]
[1724515845446,45.0,159.92,159.89,21.8888]
[1724515845614,24.68136075,159.93,159.9,6.2538]
[1724515845815,9.62626075,159.93,159.9,6.2538]
[1724515846531,0.5126162,159.96,159.91,6.2534]
[1724515846730,9.62626075,159.94,159.91,6.2534]
[1724515847733,9.62626075,159.94,159.9,6.2538]
[1724515847945,9.62626075,159.92,159.89,21.8891]
[1724515848441,9.62626075,159.92,159.9,6.2538]
[1724515850122,9.62626075,159.94,159.91,6.2535]
[1724515850320,0.5126162,159.96,159.92,6.253]
[1724515850546,9.62626075,159.95,159.92,6.253]
[1724515852248,0.5126162,159.96,159.92,6.253]
[1724515852447,9.62626075,159.95,159.92,6.253]
[1724515855529,9.62626075,159.95,159.91,6.2534]
[1724515855731,9.62626075,159.93,159.91,6.2534]
[1724515857760,9.62626075,159.93,159.87,21.562]
[1724515858072,9.62626075,159.9,159.88,6.2546]
[1724515858228,9.62626075,159.9,159.86,15.6385]
[1724515858564,9.62626075,159.9,159.86,21.8939]
[1724515859430,9.62626075,159.9,159.87,6.2549]
[1724515860254,51.2531,159.92,159.87,6.2549]
[1724515860557,9.62626075,159.89,159.87,6.2549]
[1724515860754,9.62626075,159.89,159.83,21.562]
[1724515860963,9.62626075,159.87,159.85,6.2558]
[1724515861630,9.62626075,159.87,159.84,6.2562]
[1724515863254,9.62626075,159.87,159.85,6.2555]
[1724515863935,6.2535,159.91,159.85,6.2555]
[1724515864241,9.62626075,159.88,159.85,6.2555]
[1724515867331,9.62626075,159.86,159.82,15.6418]
[1724515867535,9.62626075,159.86,159.83,6.2566]
[1724515867864,9.62626075,159.86,159.82,15.6418]
[1724515868157,9.62626075,159.86,159.82,21.8984]
[1724515869273,9.62626075,159.84,159.82,15.6418]
[1724515869771,9.62626075,159.84,159.81,6.2574]
[1724515871572,9.62626075,159.84,159.8,6.2577]
[1724515871799,9.62626075,159.84,159.76,6.259]
[1724515871800,9.62626075,159.82,159.76,6.259]
[1724515872078,9.62626075,159.78,159.76,14.09180066]
[1724515872252,9.62626075,159.78,159.76,6.259]
[1724515873665,9.62626075,159.8,159.76,6.259]
[1724515873864,9.62626075,159.8,159.75,15.6489]
[1724515874164,9.62626075,159.8,159.76,6.2593]
[1724515881262,51.6378,159.83,159.77,6.2589]
[1724515881588,9.62626075,159.81,159.77,6.2589]
[1724515881889,45.0,159.83,159.78,15.6463]
[1724515882051,15.8298,159.86,159.8,6.2577]
[1724515882255,9.62626075,159.84,159.79,6.2582]
[1724515882978,9.62626075,159.8,159.74,15.6496]
[1724515883156,9.62626075,159.8,159.76,6.2593]
[1724515883358,22.4676,159.83,159.77,6.2589]
[1724515883570,31.71306075,159.83,159.77,6.2589]
[1724515883784,45.0,159.82,159.77,6.2589]
[1724515884297,31.71306075,159.83,159.77,6.2589]
[1724515884979,13.8630629,159.85,159.77,15.6471]
[1724515885178,6.2563,159.84,159.79,6.2581]
[1724515885487,6.2554,159.86,159.8,6.2576]
[1724515886393,9.62626075,159.85,159.78,6.2582]
[1724515886879,15.8298,159.87,159.78,6.2582]
[1724515887065,9.62626075,159.84,159.78,6.2582]
[1724515887888,45.0,159.83,159.78,6.2582]
[1724515888178,45.0,159.83,159.77,15.6471]
[1724515888179,9.62626075,159.82,159.77,15.6471]
[1724515889163,9.62626075,159.82,159.77,21.906]
[1724515890661,6.2586,159.78,159.73,30.7876]
[1724515890858,15.88436075,159.8,159.75,6.2597]
[1724515891256,9.62626075,159.8,159.76,6.2593]
[1724515891457,9.62626075,159.8,159.76,15.6483]
[1724515892756,9.62626075,159.8,159.76,21.9076]
[1724515897586,6.2576,159.81,159.76,21.9076]
[1724515897770,9.62626075,159.8,159.76,21.9076]
[1724515900487,9.62626075,159.8,159.74,6.2598]
[1724515900683,9.62626075,159.8,159.73,15.1364]
[1724515901063,9.62626075,159.78,159.73,15.1364]
[1724515901264,9.62626075,159.78,159.73,21.3966]
[1724515901675,9.62626075,159.78,159.76,15.6484]
[1724515903889,15.88406075,159.8,159.76,15.6484]
[1724515906785,9.62626075,159.8,159.76,15.6484]
[1724515907085,92.250001,159.82,159.77,2.8184573]
[1724515907470,92.250001,159.82,159.77,1.25173338]
[1724515907675,92.250001,159.82,159.77,2.81825533]
[1724515907879,92.250001,159.82,159.79,6.258]
[1724515912693,92.250001,159.82,159.78,6.2585]
[1724515913289,92.250001,159.82,159.78,14.09067848]
[1724515913489,92.250001,159.82,159.78,6.2585]
[1724515913882,92.250001,159.82,159.78,14.09105651]
[1724515914083,92.250001,159.82,159.78,6.2585]
[1724515917097,92.250001,159.82,159.79,23.47788878]
[1724515917295,92.250001,159.82,159.79,15.6455]
[1724515919813,9.62626075,159.81,159.79,15.6455]
[1724515919983,9.62626075,159.81,159.78,6.2584]
[1724515923287,92.250001,159.82,159.78,6.2584]
[1724515923488,9.62626075,159.81,159.78,6.2584]
[1724515924904,9.62626075,159.81,159.79,7.8321606]
[1724515925102,9.62626075,159.81,159.78,6.2584]
[1724515925308,9.62626075,159.81,159.79,7.83247707]
[1724515925486,9.62626075,159.81,159.78,6.2584]
[1724515925890,92.250001,159.82,159.79,6.2581]
[1724515926105,92.250001,159.82,159.8,6.2577]
[1724515926300,92.250001,159.82,159.79,6.2581]
[1724515928610,92.250001,159.82,159.8,6.2577]
[1724515928988,92.250001,159.82,159.81,6.2574]
[1724515929402,92.250001,159.82,159.81,21.9009]
[1724515930090,92.250001,159.82,159.81,29.7324813]
[1724515932485,92.250001,159.82,159.81,21.9009]
[1724515932700,92.250001,159.82,159.81,29.73190372]
[1724515932905,92.250001,159.82,159.81,21.9009]
[1724515933103,101.87626175,159.82,159.81,21.9009]
[1724515933391,101.87626175,159.82,159.78,15.6463]
[1724515933594,101.87626175,159.82,159.79,7.83206622]
[1724515934008,101.87626175,159.82,159.78,15.6463]
[1724515934212,101.87626175,159.82,159.79,6.258]
[1724515934590,92.250001,159.82,159.8,6.2577]
[1724515937316,92.250001,159.82,159.78,15.6463]
[1724515937993,9.62626075,159.81,159.78,15.6463]
[1724515939217,9.62626075,159.81,159.79,6.2579]
[1724515939893,9.62626075,159.81,159.78,21.9048]
[1724515940793,9.62626075,159.79,159.78,15.6463]
[1724515946004,9.62626075,159.79,159.76,6.2593]
[1724515946603,9.62626075,159.79,159.75,15.6493]
[1724515947520,9.62626075,159.79,159.77,6.2589]
[1724515949321,9.62626075,159.79,159.77,6.2589]
[1724515950538,9.62626075,159.79,159.75,21.9087]
[1724515950732,9.62626075,159.77,159.76,7.83380261]
[1724515951107,9.62626075,159.77,159.73,14.09471412]
[1724515951425,9.62626075,159.75,159.74,7.83451412]
[1724515951634,9.62626075,159.75,159.73,6.2602]
[1724515952422,9.62626075,159.77,159.73,6.2602]
[1724515954227,9.62626075,159.77,159.73,14.09504193]
[1724515955024,9.62626075,159.75,159.73,7.83484193]
[1724515955223,9.62626075,159.75,159.72,21.9127]
[1724515955905,9.62626075,159.73,159.72,15.6521]
[1724515956807,9.62626075,159.73,159.7,6.2614]
[1724515957627,9.62626075,159.75,159.71,6.2612]
[1724515958426,16.624,159.76,159.72,6.2609]
[1724515960246,16.624,159.76,159.73,15.6506]
[1724515960556,16.624,159.76,159.73,21.9111]
[1724515961422,16.624,159.76,159.73,15.6506]
[1724515963140,16.624,159.76,159.73,21.9108]
[1724515964439,26.25026075,159.8,159.74,6.2601]
[1724515965249,6.2582,159.79,159.74,6.2601]
[1724515965624,15.88486075,159.78,159.73,21.911]
[1724515971252,6.2586,159.78,159.73,21.911]
[1724515971430,9.62626075,159.77,159.73,21.911]
[1724515972439,9.62626075,159.75,159.7,15.6542]
[1724515972748,45.0,159.74,159.7,21.9155]
[1724515973252,9.62626075,159.75,159.71,6.2612]
[1724515975331,6.2594,159.76,159.7,15.6542]
[1724515975332,15.88526075,159.77,159.72,6.2608]
[1724515975750,15.88526075,159.77,159.67,9.62626075]
[1724515975751,9.62626075,159.73,159.67,15.6569]
[1724515975939,9.62626075,159.71,159.67,21.9194]
[1724515977634,6.2601,159.74,159.67,15.6569]
[1724515977955,15.88636075,159.74,159.68,6.2624]
[1724515978155,45.0,159.73,159.68,6.2624]
[1724515979443,45.0,159.73,159.69,6.262]
[1724515982162,6.2615,159.71,159.65,12.81131436]
[1724515982366,21.5196,159.65,159.62,7.83711144]
[1724515982554,21.5196,159.65,159.63,7.83711144]
[1724515982782,21.5196,159.65,159.56,0.3142363]
[1724515982783,54.62626075,159.64,159.62,7.83711144]
[1724515983085,54.62626075,159.64,159.56,0.3142363]
[1724515983086,54.62626075,159.64,159.57,15.6669]
[1724515983240,59.03270095,159.64,159.57,21.9334]
[1724515983439,45.0,159.64,159.57,15.6669]
[1724515983667,15.0424,159.65,159.64,6.264]
[1724515983889,15.0424,159.71,159.68,6.2625]
[1724515984170,15.0424,159.71,159.67,6.2626]
[1724515984411,15.0424,159.71,159.65,6.2636]
[1724515984790,15.0424,159.71,159.66,9.62626075]
[1724515985105,15.0424,159.71,159.65,6.2636]
[1724515985963,15.0424,159.71,159.63,6.2643]
[1724515986196,45.0,159.7,159.64,9.62626075]
[1724515986577,45.0,159.7,159.63,6.2643]
[1724515986885,45.0,159.7,159.63,30.38909512]
[1724515987778,45.0,159.7,159.64,6.2638]
[1724515988385,45.0,159.7,159.64,30.38859512]
[1724515988789,15.0424,159.71,159.65,6.2634]
[1724515988961,6.4772,159.74,159.69,6.2619]
[1724515989161,15.4101,159.75,159.69,6.2619]
[1724515990480,15.4101,159.75,159.7,6.2615]
[1724515990686,6.1676,159.78,159.72,6.2607]
[1724515991265,6.1676,159.78,159.71,15.6528]
[1724515992271,12.4263,159.78,159.71,15.6528]
[1724515992788,45.0,159.77,159.71,15.6528]
[1724515994298,45.0,159.77,159.68,6.2622]
[1724515994491,24.12479512,159.76,159.68,6.2622]
[1724515994785,45.0,159.75,159.68,6.2622]
[1724515995195,51.2598,159.75,159.68,6.2622]
[1724515995885,6.2602,159.74,159.68,6.2622]
[1724515996083,45.0,159.73,159.68,6.2622]
[1724515996981,51.2606,159.73,159.67,21.9199]
[1724515997587,6.261,159.72,159.67,15.657]
[1724515997787,45.0,159.71,159.67,15.657]
[1724515998488,45.0,159.71,159.67,21.9199]
[1724515999993,45.0,159.72,159.67,21.9199]
[1724516003109,51.261,159.72,159.67,21.9199]
[1724516004386,51.261,159.72,159.67,15.657]
[1724516004387,67.4715,159.72,159.67,15.657]
[1724516007297,6.2614,159.71,159.67,15.657]
[1724516007484,45.0,159.7,159.67,15.657]
[1724516008578,45.0,159.71,159.67,21.9199]
[1724516015312,45.0,159.71,159.67,6.2629]
[1724516022231,45.0,159.71,159.67,15.6564]
[1724516022425,26.21100451,159.76,159.69,6.2621]
[1724516022726,26.21100451,159.76,159.68,6.2624]
[1724516023623,9.64960451,159.74,159.68,6.2624]
[1724516023828,45.0,159.73,159.68,6.2624]
[1724516024202,51.2606,159.73,159.68,6.2624]
[1724516025115,9.64960451,159.72,159.68,6.2624]
[1724516025317,45.0,159.71,159.68,6.2624]
[1724516029833,45.0,159.71,159.67,21.9192]
[1724516030231,51.2615,159.71,159.67,15.6564]
[1724516035124,6.2617,159.7,159.66,6.2631]
[1724516035323,45.0,159.69,159.66,6.2631]
[1724516038348,45.0,159.69,159.67,1.56746003]
[1724516038552,45.0,159.69,159.68,1.56746003]
[1724516041136,51.2621,159.69,159.68,1.56746003]
[1724516041342,45.0,159.69,159.68,1.56746003]